fUST/lending_fUST_20241026
["ID","MTS","AMOUNT","RATE_DAILY","PERIOD"]
[340845297,1729922813595,-501.94466703,0.00038356,120]
[340845298,1729922813626,-500.91576663,0.00038356,120]
[340845299,1729922813656,-1041.41,0.00038356,120]
[340845300,1729922813686,-943.32,0.00038356,120]
[340845301,1729922813719,-500.0,0.00038356,120]
[340845302,1729922813749,-502.72263435,0.00038356,120]
[340845303,1729922813779,-500.0,0.00038356,120]
[340845304,1729922813811,-651.62,0.00038356,120]
[340845305,1729922813843,-500.0,0.00038356,30]
[340845306,1729922813893,-3371.57,0.00038356,120]
[340845307,1729922813942,-728.94,0.00038356,120]
[340845308,1729922813988,-506.05253301,0.00038356,120]
[340845309,1729922814339,-500.0,0.00038356,120]
[340845310,1729922814369,-570.17,0.00038356,120]
[340845311,1729922814395,-504.05695036,0.00038356,120]
[340845312,1729922814429,-165.74027766,0.00038356,120]
[340845313,1729922814457,-748.84,0.00038356,120]
[340845314,1729922814484,-499.59475448,0.00038356,120]
[340845315,1729922814512,-502.37514296,0.00038356,120]
[340845316,1729922814537,-500.0,0.00038356,120]
[340845317,1729922814563,-500.74798433,0.00038356,60]
[340845318,1729922814587,-504.01893344,0.00038356,120]
[340845319,1729922814615,-500.0,0.00038356,120]
[340845320,1729922814640,-500.0,0.00038356,120]
[340845321,1729922814666,-538.73,0.00038356,120]
[340845322,1729922814692,-500.0,0.00038356,120]
[340845323,1729922814720,-504.00725542,0.00038356,120]
[340845324,1729922814747,-501.83934071,0.00038356,120]
[340845325,1729922814774,-506.23208945,0.00038356,120]
[340845326,1729922814799,-500.0,0.00038356,120]
[340845327,1729922814825,-500.0,0.00038356,120]
[340845328,1729922814851,-625.81,0.00038356,120]
[340845329,1729922814878,-500.0,0.00038356,120]
[340845330,1729922814904,-500.0,0.00038356,120]
[340845331,1729922814931,-500.0,0.00038356,120]
[340845332,1729922814958,-1000.17,0.00038356,120]
[340845333,1729922814983,-511.69392761,0.00038356,120]
[340845334,1729922815010,-500.0,0.00038356,120]
[340845335,1729922815035,-678.04,0.00038356,120]
[340845336,1729922815060,-501.87199315,0.00038356,120]
[340845337,1729922815086,-529.84,0.00038356,120]
[340845338,1729922815115,-501.05225644,0.00038356,120]
[340845339,1729922815142,-500.0,0.00038356,120]
[340845340,1729922815168,-500.0,0.00038356,120]
[340845341,1729922815196,-500.0,0.00038356,120]
[340845342,1729922815223,-501.52342905,0.00038356,120]
[340845343,1729922815249,-500.0,0.00038356,120]
[340845344,1729922815275,-648.97,0.00038356,120]
[340845345,1729922815301,-500.0,0.00038356,120]
[340845346,1729922815327,-500.0,0.00038356,120]
[340845347,1729922815352,-502.82319273,0.00038356,120]
[340845348,1729922815384,-501.5680213,0.00038356,120]
[340845349,1729922815410,-500.0,0.00038356,120]
[340845350,1729922815435,-500.0,0.00038356,120]
[340845351,1729922815461,-500.0,0.00038356,120]
[340845352,1729922815487,-500.0,0.00038356,120]
[340845353,1729922815514,-500.0,0.00038356,120]
[340845354,1729922815540,-500.0,0.00038356,120]
[340845355,1729922815566,-500.0,0.00038356,120]
[340845356,1729922815592,-500.0,0.00038356,120]
[340845357,1729922815623,-500.0,0.00038356,30]
[340845358,1729922815649,-500.0,0.00038356,120]
[340845359,1729922815675,-500.0,0.00038356,120]
[340845360,1729922815704,-549.28,0.00038356,120]
[340845361,1729922815730,-500.0,0.00038356,120]
[340845362,1729922815756,-500.0,0.00038356,120]
[340845363,1729922815784,-962.66,0.00038356,120]
[340845364,1729922815811,-638.5,0.00038356,60]
[340845365,1729922815850,-700.16,0.00038356,120]
[340845366,1729922815884,-500.0,0.00038356,120]
[340845367,1729922815912,-361.24111431,0.00038356,120]
[340845368,1729922815939,-241.4372912,0.00038356,120]
[340845369,1729922815966,-500.0,0.00038356,120]
[340845370,1729922815994,-500.0,0.00038356,120]
[340845371,1729922816021,-500.0,0.00038356,120]
[340845372,1729922816047,-500.0,0.00038356,120]
[340845373,1729922816074,-500.0,0.00038356,120]
[340845374,1729922816101,-635.68050752,0.00038356,120]
[340845375,1729922816128,-500.0,0.00038356,120]
[340845376,1729922816155,-500.0,0.00038356,120]
[340845377,1729922816182,-500.0,0.00038356,120]
[340845378,1729922816209,-481.2216749,0.00038356,120]
[340845379,1729922816236,-1128.88,0.00038356,120]
[340845380,1729922816263,-500.0,0.00038356,120]
[340845381,1729922816293,-523.1,0.00038356,120]
[340845382,1729922816321,-506.49018,0.00038356,120]
[340845383,1729922816347,-5876.07,0.00038356,120]
[340845384,1729922816377,-500.0,0.00038356,120]
[340845385,1729922816403,-500.0,0.00038356,120]
[340845386,1729922816430,-500.0,0.00038356,120]
[340845387,1729922816455,-604.80654616,0.00038356,120]
[340845388,1729922816482,-853.81,0.00038356,120]
[340845389,1729922816510,-838.79,0.00038356,120]
[340845390,1729922816542,-500.0,0.00038356,120]
[340845391,1729922816570,-509.060851,0.00038356,120]
[340845392,1729922816597,-500.0,0.00038356,120]
[340845393,1729922816626,-500.0,0.00038356,120]
[340845394,1729922816652,-590.88,0.00038356,120]
[340845395,1729922816679,-500.0,0.00038356,120]
[340845396,1729922816709,-757.11,0.00038356,120]
[340845397,1729922816739,-500.0,0.00038356,120]
[340845398,1729922816765,-500.0,0.00038356,120]
[340845399,1729922816797,-500.0,0.00038356,120]
[340845400,1729922816824,-500.0,0.00038356,120]
[340845401,1729922816851,-520.35189233,0.00038356,120]
[340845402,1729922816878,-503.78151543,0.00038356,120]
[340845403,1729922816905,-500.0,0.00038356,120]
[340845404,1729922816931,-658.79,0.00038356,120]
[340845405,1729922816962,-591.89,0.00038356,120]
[340845406,1729922816987,-500.0,0.00038356,120]
[340845407,1729922817014,-500.0,0.00038356,120]
[340845408,1729922817040,-500.0,0.00038356,120]
[340845409,1729922817068,-500.0,0.00038356,120]
[340845410,1729922817306,-699.36,0.00038356,120]
[340845411,1729922817332,-500.0,0.00038356,120]
[340845412,1729922817358,-519.49281084,0.00038356,120]
[340845413,1729922817386,-500.0,0.00038356,120]
[340845414,1729922817412,-740.49,0.00038356,120]
[340845415,1729922817438,-500.0,0.00038356,120]
[340845416,1729922817463,-500.30876443,0.00038356,120]
[340845417,1729922817488,-500.0,0.00038356,120]
[340845418,1729922817513,-500.0,0.00038356,120]
[340845419,1729922817538,-12053.78,0.00038356,60]
[340845420,1729922817562,-500.0,0.00038356,120]
[340845421,1729922817586,-500.0,0.00038356,120]
[340845422,1729922817613,-500.0,0.00038356,120]
[340845423,1729922817639,-505.1000871,0.00038356,120]
[340845424,1729922817665,-500.0,0.00038356,120]
[340845425,1729922817690,-503.27722085,0.00038356,120]
[340845426,1729922817719,-596.71,0.00038356,120]
[340845427,1729922817744,-500.0,0.00038356,120]
[340845428,1729922817769,-618.89,0.00038356,120]
[340845429,1729922817795,-500.0,0.00038356,120]
[340845430,1729922817820,-500.0,0.00038356,120]
[340845431,1729922817845,-500.0,0.00038356,120]
[340845432,1729922817870,-500.0,0.00038356,120]
[340845433,1729922817895,-500.0,0.00038356,120]
[340845434,1729922817920,-500.0,0.00038356,120]
[340845435,1729922817946,-500.0,0.00038356,120]
[340845436,1729922817972,-500.0,0.00038356,120]
[340845437,1729922817998,-500.0,0.00038356,120]
[340845438,1729922818024,-500.0,0.00038356,120]
[340845439,1729922818048,-507.7777444,0.00038356,120]
[340845440,1729922818074,-500.0,0.00038356,120]
[340845441,1729922818100,-852.92,0.00038356,120]
[340845442,1729922818126,-500.0,0.00038356,120]
[340845443,1729922818153,-500.0,0.00038356,120]
[340845444,1729922818178,-501.76850781,0.00038356,120]
[340845445,1729922818203,-500.0,0.00038356,120]
[340845446,1729922818230,-500.0,0.00038356,120]
[340845447,1729922818254,-500.0,0.00038356,120]
[340845448,1729922818279,-714.12,0.00038356,120]
[340845449,1729922818304,-2465.37,0.00038356,120]
[340845450,1729922818330,-1004.2,0.00038356,120]
[340845451,1729922818354,-500.0,0.00038356,120]
[340845452,1729922818380,-529.3445892,0.00038356,120]
[340845453,1729922818406,-500.0,0.00038356,120]
[340845454,1729922818433,-4091.94,0.00038356,120]
[340845455,1729922818458,-1000.0,0.00038356,120]
[340845456,1729922818484,-500.0,0.00038356,120]
[340845457,1729922818510,-500.0,0.00038356,120]
[340845458,1729922818536,-501.88157315,0.00038356,120]
[340845459,1729922818562,-500.0,0.00038356,120]
[340845460,1729922818587,-500.0,0.00038356,120]
[340845461,1729922818611,-500.0,0.00038356,30]
[340845462,1729922818636,-500.0,0.00038356,60]
[340845463,1729922818660,-500.0,0.00038356,120]
[340845464,1729922818686,-6307.75,0.00038356,120]
[340845465,1729922818716,-500.0,0.00038356,120]
[340845466,1729922818743,-500.0,0.00038356,120]
[340845467,1729922818769,-507.30545304,0.00038356,120]
[340845468,1729922818795,-1333.31,0.00038356,120]
[340845469,1729922818819,-512.40035551,0.00038356,120]
[340845470,1729922818844,-500.0,0.00038356,120]
[340845471,1729922818878,-1109.11,0.00038356,120]
[340845472,1729922818904,-745.83,0.00038356,120]
[340845473,1729922818930,-500.0,0.00038356,120]
[340845474,1729922818959,-500.0,0.00038356,120]
[340845475,1729922818985,-663.59,0.00038356,120]
[340845476,1729922819010,-500.0,0.00038356,120]
[340845477,1729922819035,-500.0,0.00038356,120]
[340845478,1729922819059,-500.0,0.00038356,120]
[340845479,1729922819086,-3262.64,0.00038356,120]
[340845480,1729922819113,-755.36,0.00038356,120]
[340845481,1729922819139,-500.0,0.00038356,120]
[340845482,1729922819165,-500.0,0.00038356,120]
[340845483,1729922819189,-500.0,0.00038356,120]
[340845484,1729922819214,-500.0,0.00038356,120]
[340845485,1729922819238,-509.83,0.00038356,120]
[340845486,1729922819264,-1887.15,0.00038356,120]
[340845487,1729922819291,-500.0,0.00038356,120]
[340845488,1729922819316,-732.27,0.00038356,120]
[340845489,1729922819340,-500.0,0.00038356,120]
[340845490,1729922819367,-500.0,0.00038356,120]
[340845491,1729922819392,-666.9,0.00038356,120]
[340845492,1729922819417,-500.0,0.00038356,120]
[340845493,1729922819442,-3097.42,0.00038356,120]
[340845494,1729922819467,-500.0,0.00038356,120]
[340845495,1729922819491,-500.0,0.00038356,120]
[340845496,1729922819514,-1747.41,0.00038356,120]
[340845497,1729922819539,-701.22,0.00038356,120]
[340845498,1729922819564,-3038.71,0.00038356,120]
[340845499,1729922819588,-500.0,0.00038356,120]
[340845500,1729922819614,-593.79,0.00038356,120]
[340845501,1729922819639,-500.0,0.00038356,120]
[340845502,1729922819663,-500.0,0.00038356,120]
[340845503,1729922819688,-1236.57,0.00038356,120]
[340845504,1729922819716,-500.0,0.00038356,120]
[340845505,1729922819740,-500.0,0.00038356,120]
[340845506,1729922819764,-1866.69,0.00038356,120]
[340845507,1729922819789,-500.0,0.00038356,120]
[340845508,1729922819814,-610.14,0.00038356,120]
[340845509,1729922819838,-500.0,0.00038356,120]
[340845510,1729922819868,-617.34,0.00038356,120]
[340845511,1729922819893,-500.0,0.00038356,120]
[340845512,1729922819918,-624.57,0.00038356,120]
[340845513,1729922819942,-500.0,0.00038356,120]
[340845514,1729922820134,-500.0,0.00038356,120]
[340845515,1729922820159,-810.12,0.00038356,120]
[340845516,1729922820186,-3305.93,0.00038356,120]
[340845517,1729922820212,-500.0,0.00038356,120]
[340845518,1729922820237,-500.0,0.00038356,120]
[340845519,1729922820261,-500.0,0.00038356,120]
[340845520,1729922820286,-1103.127631,0.00038356,120]
[340845521,1729922820311,-150.5,0.0003839,120]
[340845522,1729922820338,-329.06,0.000384,120]
[340845523,1729922820365,-468.02181,0.000386,120]
[340845524,1729922820390,-500.0,0.00038629,60]
[340845525,1729922820415,-500.0,0.0003863,120]
[340845526,1729922820441,-500.0,0.0003863,120]
[340845527,1729922820466,-541.38550093,0.0003863,120]
[340845528,1729922820491,-549.42378196,0.0003863,120]
[340845529,1729922820516,-500.0,0.0003863,120]
[340845530,1729922820540,-501.03149758,0.0003863,120]
[340845531,1729922820565,-500.0,0.0003863,120]
[340845532,1729922820590,-227.65758822,0.0003863,120]
[340845533,1729922820615,-500.0,0.0003863,120]
[340845534,1729922820640,-500.0,0.0003863,120]
[340845535,1729922820666,-502.15808373,0.0003863,120]
[340845536,1729922820691,-501.58613641,0.0003863,120]
[340845537,1729922820719,-500.0,0.0003863,120]
[340845538,1729922820745,-500.0,0.0003863,120]
[340845539,1729922820770,-521.75638779,0.0003863,120]
[340845540,1729922820797,-500.0,0.0003863,120]
[340845541,1729922820821,-600.51628525,0.0003863,120]
[340845542,1729922820846,-560.27,0.0003863,120]
[340845543,1729922820872,-611.66,0.0003863,120]
[340845544,1729922820898,-538.94247471,0.0003863,120]
[340845545,1729922820922,-529.03,0.0003863,120]
[340845546,1729922820947,-500.0,0.0003863,120]
[340845547,1729922820971,-502.11268599,0.0003863,120]
[340845548,1729922820995,-500.0,0.0003863,120]
[340845549,1729922821021,-504.41361236,0.0003863,120]
[340845550,1729922821046,-500.0,0.0003863,120]
[340845551,1729922821071,-614.4,0.0003863,120]
[340845552,1729922821096,-676.77,0.0003863,120]
[340845553,1729922821121,-1037.79,0.0003863,120]
[340845554,1729922821146,-503.29817855,0.0003863,120]
[340845555,1729922821171,-500.0,0.0003863,120]
[340845556,1729922821195,-500.0,0.0003863,120]
[340845557,1729922821221,-500.0,0.0003863,120]
[340845558,1729922821246,-500.0,0.0003863,120]
[340845559,1729922821272,-561.85,0.0003863,120]
[340845560,1729922821297,-573.22,0.0003863,120]
[340845561,1729922821321,-511.46394833,0.0003863,120]
[340845562,1729922821346,-500.0,0.0003863,120]
[340845563,1729922821371,-782.58,0.0003863,120]
[340845564,1729922821395,-505.19578174,0.0003863,120]
[340845565,1729922821420,-500.0,0.0003863,120]
[340845566,1729922821448,-500.0,0.0003863,120]
[340845567,1729922821472,-500.0,0.0003863,120]
[340845568,1729922821496,-516.15778642,0.0003863,120]
[340845569,1729922821521,-303.73589396,0.0003863,120]
[340845570,1729922821546,-500.0,0.0003863,120]
[340845571,1729922821570,-502.01288513,0.0003863,120]
[340845572,1729922821594,-506.8023627,0.0003863,120]
[340845573,1729922821619,-500.0,0.0003863,120]
[340845574,1729922821645,-500.0,0.0003863,120]
[340845575,1729922821669,-500.0,0.0003863,120]
[340845576,1729922821695,-506.13387349,0.0003863,120]
[340845577,1729922821724,-520.25777934,0.0003863,120]
[340845578,1729922821749,-500.0,0.0003863,120]
[340845579,1729922821773,-502.14973485,0.0003863,120]
[340845580,1729922821798,-500.0,0.0003863,120]
[340845581,1729922821824,-500.0,0.0003863,120]
[340845582,1729922821848,-500.0,0.0003863,120]
[340845583,1729922821873,-513.50405404,0.0003863,120]
[340845584,1729922821898,-500.0,0.0003863,120]
[340845585,1729922821923,-503.85582668,0.0003863,120]
[340845586,1729922821950,-501.33493741,0.0003863,120]
[340845587,1729922821978,-500.0,0.0003863,120]
[340845588,1729922822004,-500.0,0.0003863,120]
[340845589,1729922822030,-511.31,0.0003863,120]
[340845590,1729922822057,-500.0,0.0003863,120]
[340845591,1729922822082,-1069.36,0.0003863,120]
[340845592,1729922822108,-504.58651414,0.0003863,120]
[340845593,1729922822132,-501.47804813,0.0003863,120]
[340845594,1729922822157,-1000.0,0.0003863,120]
[340845595,1729922822186,-500.0,0.0003863,120]
[340845596,1729922822210,-500.0,0.0003863,120]
[340845597,1729922822234,-500.0,0.0003863,120]
[340845598,1729922822261,-770.08,0.0003863,120]
[340845599,1729922822286,-587.05,0.0003863,120]
[340845600,1729922822312,-500.0,0.0003863,120]
[340845601,1729922822336,-500.0,0.0003863,120]
[340845602,1729922822360,-500.0,0.0003863,120]
[340845603,1729922822383,-500.0,0.0003863,120]
[340845604,1729922822408,-500.0,0.0003863,120]
[340845605,1729922822432,-500.0,0.0003863,120]
[340845606,1729922822458,-500.0,0.0003863,120]
[340845607,1729922822483,-500.0,0.0003863,120]
[340845608,1729922822506,-500.0,0.0003863,120]
[340845609,1729922822530,-500.0,0.0003863,120]
[340845610,1729922822554,-500.0,0.0003863,120]
[340845611,1729922822578,-500.0,0.0003863,120]
[340845612,1729922822602,-500.0,0.0003863,120]
[340845613,1729922822630,-500.0,0.0003863,120]
[340845614,1729922822653,-741.21,0.0003863,120]
[340845615,1729922822678,-500.0,0.0003863,120]
[340845616,1729922822707,-500.0,0.0003863,120]
[340845617,1729922822734,-500.0,0.0003863,120]
[340845618,1729922822925,-500.0,0.0003863,120]
[340845619,1729922822952,-500.0,0.0003863,120]
[340845620,1729922822979,-510.38838642,0.0003863,120]
[340845621,1729922823004,-860.83,0.0003863,120]
[340845622,1729922823033,-500.0,0.0003863,120]
[340845623,1729922823059,-504.5929632,0.0003863,120]
[340845624,1729922823083,-500.79422618,0.0003863,120]
[340845625,1729922823109,-500.0,0.0003863,120]
[340845626,1729922823137,-500.0,0.0003863,120]
[340845627,1729922823162,-523.0,0.0003863,120]
[340845628,1729922823187,-500.0,0.0003863,120]
[340845629,1729922823211,-500.0,0.0003863,120]
[340845630,1729922823236,-500.0,0.0003863,120]
[340845631,1729922823259,-532.1807069,0.0003863,120]
[340845632,1729922823287,-500.0,0.0003863,120]
[340845633,1729922823311,-500.0,0.0003863,120]
[340845634,1729922823336,-500.0,0.0003863,120]
[340845635,1729922823364,-547.02453993,0.0003863,120]
[340845636,1729922823389,-500.0,0.0003863,120]
[340845637,1729922823414,-401.53804156,0.0003863,120]
[340845638,1729922823439,-513.45722433,0.0003863,120]
[340845639,1729922823464,-502.826582,0.0003863,120]
[340845640,1729922823489,-522.99403374,0.0003863,120]
[340845641,1729922823515,-500.0,0.0003863,120]
[340845642,1729922823540,-641.09478952,0.0003863,120]
[340845643,1729922823568,-701.19,0.0003863,120]
[340845644,1729922823593,-688.14,0.0003863,120]
[340845645,1729922823619,-500.0,0.0003863,120]
[340845646,1729922823645,-502.48504407,0.0003863,120]
[340845647,1729922823671,-501.75966063,0.0003863,120]
[340845648,1729922823697,-500.0,0.0003863,120]
[340845649,1729922823726,-500.0,0.0003863,120]
[340845650,1729922823751,-823.26,0.0003863,120]
[340845651,1729922823776,-503.13523495,0.0003863,120]
[340845652,1729922823803,-500.0,0.0003863,120]
[340845653,1729922823828,-501.33283998,0.0003863,120]
[340845654,1729922823852,-500.0,0.0003863,120]
[340845655,1729922823879,-255.28259002,0.0003863,120]
[340845656,1729922823905,-500.0,0.0003863,120]
[340845657,1729922823931,-500.0,0.0003863,30]
[340845658,1729922823956,-696.3,0.0003863,120]
[340845659,1729922823980,-500.0,0.0003863,120]
[340845660,1729922824005,-565.26197679,0.0003863,120]
[340845661,1729922824030,-500.0,0.0003863,120]
[340845662,1729922824056,-500.0,0.0003863,120]
[340845663,1729922824080,-500.0,0.0003863,120]
[340845664,1729922824106,-984.06,0.0003863,120]
[340845665,1729922824132,-500.0,0.0003863,120]
[340845666,1729922824158,-500.0,0.0003863,120]
[340845667,1729922824183,-519.71244526,0.0003863,120]
[340845668,1729922824208,-1103.44,0.0003863,120]
[340845669,1729922824232,-500.0,0.0003863,120]
[340845670,1729922824257,-501.2365075,0.0003863,120]
[340845671,1729922824285,-500.0,0.0003863,120]
[340845672,1729922824310,-516.90094486,0.0003863,120]
[340845673,1729922824334,-500.0,0.0003863,120]
[340845674,1729922824358,-613.26,0.0003863,120]
[340845675,1729922824384,-1666.17,0.0003863,30]
[340845676,1729922824410,-500.0,0.0003863,120]
[340845677,1729922824436,-500.0,0.0003863,120]
[340845678,1729922824461,-500.0,0.0003863,120]
[340845679,1729922824485,-793.48,0.0003863,120]
[340845680,1729922824510,-500.0,0.0003863,120]
[340845681,1729922824534,-651.97,0.0003863,120]
[340845682,1729922824559,-838.88,0.0003863,120]
[340845683,1729922824583,-500.0,0.0003863,120]
[340845684,1729922824609,-500.0,0.0003863,120]
[340845685,1729922824634,-256.70809227,0.0003863,120]
[340845686,1729922824659,-500.0,0.0003863,120]
[340845687,1729922824684,-500.0,0.0003863,120]
[340845688,1729922824711,-500.0,0.0003863,120]
[340845689,1729922824737,-500.0,0.0003863,120]
[340845690,1729922824765,-936.86,0.0003863,120]
[340845691,1729922824791,-1101.64,0.0003863,120]
[340845692,1729922824817,-500.0,0.0003863,120]
[340845693,1729922824842,-631.38,0.0003863,120]
[340845694,1729922824868,-500.0,0.0003863,120]
[340845695,1729922824892,-501.33546275,0.0003863,120]
[340845696,1729922824916,-500.0,0.0003863,120]
[340845697,1729922824943,-500.0,0.0003863,120]
[340845698,1729922824969,-500.0,0.0003863,120]
[340845699,1729922824994,-502.77232157,0.0003863,120]
[340845700,1729922825018,-500.0,0.0003863,120]
[340845701,1729922825043,-500.0,0.0003863,120]
[340845702,1729922825067,-952.51,0.0003863,120]
[340845703,1729922825090,-1050.85,0.0003863,120]
[340845704,1729922825114,-500.0,0.0003863,120]
[340845705,1729922825139,-175.11242817,0.0003863,120]
[340845706,1729922825164,-500.0,0.0003863,120]
[340845707,1729922825187,-500.0,0.0003863,120]
[340845708,1729922825212,-500.0,0.0003863,120]
[340845709,1729922825236,-500.0,0.0003863,120]
[340845710,1729922825260,-500.0,0.0003863,120]
[340845711,1729922825287,-500.0,0.0003863,120]
[340845712,1729922825310,-504.41866037,0.0003863,120]
[340845713,1729922825334,-500.0,0.0003863,120]
[340845714,1729922825358,-500.0,0.0003863,120]
[340845715,1729922825383,-500.0,0.0003863,120]
[340845716,1729922825407,-500.0,0.0003863,120]
[340845717,1729922825430,-500.28148407,0.0003863,120]
[340845718,1729922825454,-500.0,0.0003863,120]
[340845719,1729922825478,-500.0,0.0003863,120]
[340845720,1729922825504,-500.0,0.0003863,120]
[340845721,1729922825530,-500.0,0.0003863,120]
[340845722,1729922825707,-512.3,0.0003863,120]
[340845723,1729922825732,-500.0,0.0003863,120]
[340845724,1729922825756,-500.0,0.0003863,120]
[340845725,1729922825780,-500.0,0.0003863,120]
[340845726,1729922825806,-500.0,0.0003863,120]
[340845727,1729922825832,-514.54251818,0.0003863,120]
[340845728,1729922825858,-877.85,0.0003863,120]
[340845729,1729922825884,-500.0,0.0003863,120]
[340845730,1729922825912,-500.0,0.0003863,120]
[340845731,1729922825937,-500.0,0.0003863,120]
[340845732,1729922825962,-500.0,0.0003863,120]
[340845733,1729922825987,-500.0,0.0003863,120]
[340845734,1729922826012,-414.25709853,0.0003863,120]
[340845735,1729922826037,-501.26069995,0.0003863,120]
[340845736,1729922826061,-500.0,0.0003863,120]
[340845737,1729922826085,-500.0,0.0003863,120]
[340845738,1729922826109,-500.0,0.0003863,120]
[340845739,1729922826136,-500.0,0.0003863,120]
[340845740,1729922826161,-500.0,0.0003863,120]
[340845741,1729922826186,-500.0,0.0003863,120]
[340845742,1729922826210,-671.09,0.0003863,120]
[340845743,1729922826234,-500.0,0.0003863,120]
[340845744,1729922826258,-500.0,0.0003863,120]
[340845745,1729922826283,-500.0,0.0003863,120]
[340845746,1729922826307,-500.0,0.0003863,120]
[340845747,1729922826331,-501.08205766,0.0003863,120]
[340845748,1729922826355,-1529.36,0.0003863,120]
[340845749,1729922826381,-500.0,0.0003863,120]
[340845750,1729922826405,-500.0,0.0003863,120]
[340845751,1729922826431,-500.0,0.0003863,120]
[340845752,1729922826456,-500.0,0.0003863,120]
[340845753,1729922826482,-500.0,0.0003863,120]
[340845754,1729922826507,-500.0,0.0003863,120]
[340845755,1729922826532,-500.0,0.0003863,120]
[340845756,1729922826556,-502.55483421,0.0003863,120]
[340845757,1729922826581,-1375.9,0.0003863,120]
[340845758,1729922826606,-500.0,0.0003863,120]
[340845759,1729922826631,-500.0,0.0003863,120]
[340845760,1729922826659,-500.0,0.0003863,120]
[340845761,1729922826685,-500.0,0.0003863,120]
[340845762,1729922826716,-541.09,0.0003863,120]
[340845763,1729922826743,-500.0,0.0003863,120]
[340845764,1729922826769,-500.0,0.0003863,120]
[340845765,1729922826798,-539.50038622,0.0003863,120]
[340845766,1729922826823,-500.0,0.0003863,120]
[340845767,1729922826848,-1117.62,0.0003863,120]
[340845768,1729922826875,-500.0,0.0003863,120]
[340845769,1729922826900,-501.14676775,0.0003863,120]
[340845770,1729922826925,-500.0,0.0003863,120]
[340845771,1729922826950,-500.70006583,0.0003863,120]
[340845772,1729922826977,-500.0,0.0003863,120]
[340845773,1729922827002,-500.0,0.0003863,120]
[340845774,1729922827028,-2332.27,0.0003863,120]
[340845775,1729922827052,-500.0,0.0003863,120]
[340845776,1729922827077,-500.0,0.0003863,120]
[340845777,1729922827102,-500.0,0.0003863,120]
[340845778,1729922827128,-502.24127252,0.0003863,120]
[340845779,1729922827154,-500.0,0.0003863,120]
[340845780,1729922827179,-1077.9,0.0003863,120]
[340845781,1729922827205,-500.0,0.0003863,120]
[340845782,1729922827230,-603.68,0.0003863,120]
[340845783,1729922827256,-500.0,0.0003863,120]
[340845784,1729922827281,-514.81473522,0.0003863,120]
[340845785,1729922827307,-505.0808984,0.0003863,120]
[340845786,1729922827332,-726.9,0.0003863,120]
[340845787,1729922827357,-508.41626982,0.0003863,120]
[340845788,1729922827383,-502.62613363,0.0003863,120]
[340845789,1729922827408,-501.06776289,0.0003863,120]
[340845790,1729922827432,-500.0,0.0003863,120]
[340845791,1729922827458,-500.0,0.0003863,120]
[340845792,1729922827484,-500.0,0.0003863,120]
[340845793,1729922827508,-581.58505592,0.0003863,120]
[340845794,1729922827533,-1364.93,0.0003863,120]
[340845795,1729922827558,-500.0,0.0003863,120]
[340845796,1729922827582,-505.29789677,0.0003863,120]